{"text_format":"3","workbook":"xlsx","n_sheets":1,"sheets":["Личный бюджет на месяц"],"read":"whole","date_system":"1900"}

{"sheet":"Личный бюджет на месяц","index":0,"n_rows":64,"n_cols":10,"rows_kept":64,"merged":[[1,1,1,9],[2,1,2,9],[4,1,6,1],[4,2,4,3],[4,6,5,8],[4,9,5,9],[5,2,5,3],[6,2,6,3],[6,6,7,8],[6,9,7,9],[7,1,9,1],[7,2,7,3],[8,2,8,3],[8,6,9,8],[8,9,9,9],[9,2,9,3],[22,6,22,9],[23,1,23,4],[31,6,31,9],[33,1,33,4],[38,6,38,9],[40,1,40,4],[44,6,44,9],[46,1,46,4],[50,6,50,9],[54,1,54,4],[57,6,57,9],[58,6,59,8],[58,9,59,9],[60,6,61,8],[60,9,61,9],[62,6,63,8],[62,9,63,9]]}
[]
[null,"Личный бюджет на месяц"]
[]
[]
[null,"ПЛАНОВЫЙ МЕСЯЧНЫЙ ДОХОД","Доход 1",null,{"v":2500,"d":"2,500 ₽"},null,"ЗАПЛАНИРОВАННОЕ САЛЬДО (запланированный доход минус запланированные расходы)",null,null,{"$f":"E7-J59","v":{"v":940,"d":"940 ₽"}}]
[null,null,"Дополнительный доход",null,{"v":500,"d":"500 ₽"}]
[null,null,"Итоговый месячный доход",null,{"$f":"SUM(E5:E6)","v":{"v":3000,"d":"3,000 ₽"}},null,"ФАКТИЧЕСКОЕ САЛЬДО (фактический доход минус фактические расходы)",null,null,{"$f":"E10-J61","v":{"v":960,"d":"960 ₽"}}]
[null,"ФАКТИЧЕСКИЙ МЕСЯЧНЫЙ ДОХОД","Доход 1",null,{"v":2500,"d":"2,500 ₽"}]
[null,null,"Дополнительный доход",null,{"v":500,"d":"500 ₽"},null,"РАЗНИЦА (фактическое сальдо минус запланированное)",null,null,{"$f":"J7-J5","v":{"v":20,"d":"20 ₽"}}]
[null,null,"Итоговый месячный доход",null,{"$f":"SUM(E8:E9)","v":{"v":3000,"d":"3,000 ₽"}}]
[]
[null,"ЖИЛЬЕ","Плановые затраты","Фактические затраты","Разница",null,"РАЗВЛЕЧЕНИЯ","Плановые затраты","Фактические затраты","Разница"]
[null,"Ипотека или аренда",{"v":1500,"d":"1,500 ₽"},{"v":1400,"d":"1,400 ₽"},{"$f":"Таблица1[[#This Row],[Плановые затраты]]-Таблица1[[#This Row],[Фактические затраты]]","v":{"v":100,"d":"100 ₽"}},null,"Видео",{"v":0,"d":"0 ₽"},{"v":50,"d":"50 ₽"},{"$f":"Таблица2[[#This Row],[Плановые затраты]]-Таблица2[[#This Row],[Фактические затраты]]","v":{"v":-50,"d":"-50 ₽"}}]
[null,"Телефон",{"v":60,"d":"60 ₽"},{"v":100,"d":"100 ₽"},{"$f":"Таблица1[[#This Row],[Плановые затраты]]-Таблица1[[#This Row],[Фактические затраты]]","v":{"v":-40,"d":"-40 ₽"}},null,"Музыка",null,null,{"$f":"Таблица2[[#This Row],[Плановые затраты]]-Таблица2[[#This Row],[Фактические затраты]]","v":{"v":0,"d":"0 ₽"}}]
[null,"Электричество",{"v":50,"d":"50 ₽"},{"v":60,"d":"60 ₽"},{"$f":"Таблица1[[#This Row],[Плановые затраты]]-Таблица1[[#This Row],[Фактические затраты]]","v":{"v":-10,"d":"-10 ₽"}},null,"Кино",null,null,{"$f":"Таблица2[[#This Row],[Плановые затраты]]-Таблица2[[#This Row],[Фактические затраты]]","v":{"v":0,"d":"0 ₽"}}]
[null,"Газ",{"v":200,"d":"200 ₽"},{"v":180,"d":"180 ₽"},{"$f":"Таблица1[[#This Row],[Плановые затраты]]-Таблица1[[#This Row],[Фактические затраты]]","v":{"v":20,"d":"20 ₽"}},null,"Концерты",null,null,{"$f":"Таблица2[[#This Row],[Плановые затраты]]-Таблица2[[#This Row],[Фактические затраты]]","v":{"v":0,"d":"0 ₽"}}]
[null,"Водоснабжение и канализация",null,null,{"$f":"Таблица1[[#This Row],[Плановые затраты]]-Таблица1[[#This Row],[Фактические затраты]]","v":{"v":0,"d":"0 ₽"}},null,"Спортивные мероприятия",null,null,{"$f":"Таблица2[[#This Row],[Плановые затраты]]-Таблица2[[#This Row],[Фактические затраты]]","v":{"v":0,"d":"0 ₽"}}]
[null,"Кабельное ТВ",null,null,{"$f":"Таблица1[[#This Row],[Плановые затраты]]-Таблица1[[#This Row],[Фактические затраты]]","v":{"v":0,"d":"0 ₽"}},null,"Театр",null,null,{"$f":"Таблица2[[#This Row],[Плановые затраты]]-Таблица2[[#This Row],[Фактические затраты]]","v":{"v":0,"d":"0 ₽"}}]
[null,"Вывоз мусора",null,null,{"$f":"Таблица1[[#This Row],[Плановые затраты]]-Таблица1[[#This Row],[Фактические затраты]]","v":{"v":0,"d":"0 ₽"}},null,"Другое",null,null,{"$f":"Таблица2[[#This Row],[Плановые затраты]]-Таблица2[[#This Row],[Фактические затраты]]","v":{"v":0,"d":"0 ₽"}}]
[null,"Ремонт или техническое обслуживание",null,null,{"$f":"Таблица1[[#This Row],[Плановые затраты]]-Таблица1[[#This Row],[Фактические затраты]]","v":{"v":0,"d":"0 ₽"}},null,"Другое",null,null,{"$f":"Таблица2[[#This Row],[Плановые затраты]]-Таблица2[[#This Row],[Фактические затраты]]","v":{"v":0,"d":"0 ₽"}}]
[null,"Материалы",null,null,{"$f":"Таблица1[[#This Row],[Плановые затраты]]-Таблица1[[#This Row],[Фактические затраты]]","v":{"v":0,"d":"0 ₽"}},null,"Другое",null,null,{"$f":"Таблица2[[#This Row],[Плановые затраты]]-Таблица2[[#This Row],[Фактические затраты]]","v":{"v":0,"d":"0 ₽"}}]
[null,"Другое",null,null,{"$f":"Таблица1[[#This Row],[Плановые затраты]]-Таблица1[[#This Row],[Фактические затраты]]","v":{"v":0,"d":"0 ₽"}},null,"Итог",{"$f":"SUBTOTAL(109,Таблица2[Плановые затраты])","v":{"v":0,"d":"0 ₽"}},{"$f":"SUBTOTAL(109,Таблица2[Фактические затраты])","v":{"v":50,"d":"50 ₽"}},{"$f":"SUBTOTAL(109,Таблица2[Разница])","v":{"v":-50,"d":"-50 ₽"}}]
[null,"Итог",{"$f":"SUBTOTAL(109,Таблица1[Плановые затраты])","v":{"v":1810,"d":"1,810 ₽"}},{"$f":"SUBTOTAL(109,Таблица1[Фактические затраты])","v":{"v":1740,"d":"1,740 ₽"}},{"$f":"SUBTOTAL(109,Таблица1[Разница])","v":{"v":70,"d":"70 ₽"}}]
[{"$nulls":6},"КРЕДИТЫ","Плановые затраты","Фактические затраты","Разница"]
[null,"ТРАНСПОРТ","Плановые затраты","Фактические затраты","Разница",null,"Личные накопления",null,null,{"$f":"Таблица8[[#This Row],[Плановые затраты]]-Таблица8[[#This Row],[Фактические затраты]]","v":{"v":0,"d":"0 ₽"}}]
[null,"Расходы на автомобиль",{"v":250,"d":"250 ₽"},{"v":250,"d":"250 ₽"},{"$f":"Таблица3[[#This Row],[Плановые затраты]]-Таблица3[[#This Row],[Фактические затраты]]","v":{"v":0,"d":"0 ₽"}},null,"На учебу",null,null,{"$f":"Таблица8[[#This Row],[Плановые затраты]]-Таблица8[[#This Row],[Фактические затраты]]","v":{"v":0,"d":"0 ₽"}}]
[null,"Проезд на автобусе/такси",null,null,{"$f":"Таблица3[[#This Row],[Плановые затраты]]-Таблица3[[#This Row],[Фактические затраты]]","v":{"v":0,"d":"0 ₽"}},null,"Кредитная карта",null,null,{"$f":"Таблица8[[#This Row],[Плановые затраты]]-Таблица8[[#This Row],[Фактические затраты]]","v":{"v":0,"d":"0 ₽"}}]
[null,"Страхование",null,null,{"$f":"Таблица3[[#This Row],[Плановые затраты]]-Таблица3[[#This Row],[Фактические затраты]]","v":{"v":0,"d":"0 ₽"}},null,"Кредитная карта",null,null,{"$f":"Таблица8[[#This Row],[Плановые затраты]]-Таблица8[[#This Row],[Фактические затраты]]","v":{"v":0,"d":"0 ₽"}}]
[null,"Лицензирование",null,null,{"$f":"Таблица3[[#This Row],[Плановые затраты]]-Таблица3[[#This Row],[Фактические затраты]]","v":{"v":0,"d":"0 ₽"}},null,"Кредитная карта",null,null,{"$f":"Таблица8[[#This Row],[Плановые затраты]]-Таблица8[[#This Row],[Фактические затраты]]","v":{"v":0,"d":"0 ₽"}}]
[null,"Топливо",null,null,{"$f":"Таблица3[[#This Row],[Плановые затраты]]-Таблица3[[#This Row],[Фактические затраты]]","v":{"v":0,"d":"0 ₽"}},null,"Другое",null,null,{"$f":"Таблица8[[#This Row],[Плановые затраты]]-Таблица8[[#This Row],[Фактические затраты]]","v":{"v":0,"d":"0 ₽"}}]
[null,"Обслуживание",null,null,{"$f":"Таблица3[[#This Row],[Плановые затраты]]-Таблица3[[#This Row],[Фактические затраты]]","v":{"v":0,"d":"0 ₽"}},null,"Итог",{"$f":"SUBTOTAL(109,Таблица8[Плановые затраты])","v":{"v":0,"d":"0 ₽"}},{"$f":"SUBTOTAL(109,Таблица8[Фактические затраты])","v":{"v":0,"d":"0 ₽"}},{"$f":"SUBTOTAL(109,Таблица8[Разница])","v":{"v":0,"d":"0 ₽"}}]
[null,"Другое",null,null,{"$f":"Таблица3[[#This Row],[Плановые затраты]]-Таблица3[[#This Row],[Фактические затраты]]","v":{"v":0,"d":"0 ₽"}}]
[null,"Итог",{"$f":"SUBTOTAL(109,Таблица3[Плановые затраты])","v":{"v":250,"d":"250 ₽"}},{"$f":"SUBTOTAL(109,Таблица3[Фактические затраты])","v":{"v":250,"d":"250 ₽"}},{"$f":"SUBTOTAL(109,Таблица3[Разница])","v":{"v":0,"d":"0 ₽"}},null,"НАЛОГИ","Плановые затраты","Фактические затраты","Разница"]
[{"$nulls":6},"Федеральные",null,null,{"$f":"Таблица9[[#This Row],[Плановые затраты]]-Таблица9[[#This Row],[Фактические затраты]]","v":{"v":0,"d":"0 ₽"}}]
[null,"СТРАХОВАНИЕ","Плановые затраты","Фактические затраты","Разница",null,"Уровня штата",null,null,{"$f":"Таблица9[[#This Row],[Плановые затраты]]-Таблица9[[#This Row],[Фактические затраты]]","v":{"v":0,"d":"0 ₽"}}]
[null,"Дом",null,null,{"$f":"Таблица4[[#This Row],[Плановые затраты]]-Таблица4[[#This Row],[Фактические затраты]]","v":{"v":0,"d":"0 ₽"}},null,"Местные",null,null,{"$f":"Таблица9[[#This Row],[Плановые затраты]]-Таблица9[[#This Row],[Фактические затраты]]","v":{"v":0,"d":"0 ₽"}}]
[null,"Здоровье",null,null,{"$f":"Таблица4[[#This Row],[Плановые затраты]]-Таблица4[[#This Row],[Фактические затраты]]","v":{"v":0,"d":"0 ₽"}},null,"Другое",null,null,{"$f":"Таблица9[[#This Row],[Плановые затраты]]-Таблица9[[#This Row],[Фактические затраты]]","v":{"v":0,"d":"0 ₽"}}]
[null,"Жизнь",null,null,{"$f":"Таблица4[[#This Row],[Плановые затраты]]-Таблица4[[#This Row],[Фактические затраты]]","v":{"v":0,"d":"0 ₽"}},null,"Итог",{"$f":"SUBTOTAL(109,Таблица9[Плановые затраты])","v":{"v":0,"d":"0 ₽"}},{"$f":"SUBTOTAL(109,Таблица9[Фактические затраты])","v":{"v":0,"d":"0 ₽"}},{"$f":"SUBTOTAL(109,Таблица9[Разница])","v":{"v":0,"d":"0 ₽"}}]
[null,"Другое",null,null,{"$f":"Таблица4[[#This Row],[Плановые затраты]]-Таблица4[[#This Row],[Фактические затраты]]","v":{"v":0,"d":"0 ₽"}}]
[null,"Итог",{"$f":"SUBTOTAL(109,Таблица4[Плановые затраты])","v":{"v":0,"d":"0 ₽"}},{"$f":"SUBTOTAL(109,Таблица4[Фактические затраты])","v":{"v":0,"d":"0 ₽"}},{"$f":"SUBTOTAL(109,Таблица4[Разница])","v":{"v":0,"d":"0 ₽"}},null,"СБЕРЕЖЕНИЯ И ИНВЕСТИЦИИ","Плановые затраты","Фактические затраты","Разница"]
[{"$nulls":6},"Пенсионный счет",null,null,{"$f":"Таблица10[[#This Row],[Плановые затраты]]-Таблица10[[#This Row],[Фактические затраты]]","v":{"v":0,"d":"0 ₽"}}]
[null,"ЕДА","Плановые затраты","Фактические затраты","Разница",null,"Инвестиционный счет",null,null,{"$f":"Таблица10[[#This Row],[Плановые затраты]]-Таблица10[[#This Row],[Фактические затраты]]","v":{"v":0,"d":"0 ₽"}}]
[null,"Продовольственные товары",null,null,{"$f":"Таблица5[[#This Row],[Плановые затраты]]-Таблица5[[#This Row],[Фактические затраты]]","v":{"v":0,"d":"0 ₽"}},null,"Другое",null,null,{"$f":"Таблица10[[#This Row],[Плановые затраты]]-Таблица10[[#This Row],[Фактические затраты]]","v":{"v":0,"d":"0 ₽"}}]
[null,"Рестораны",null,null,{"$f":"Таблица5[[#This Row],[Плановые затраты]]-Таблица5[[#This Row],[Фактические затраты]]","v":{"v":0,"d":"0 ₽"}},null,"Итог",{"$f":"SUBTOTAL(109,Таблица10[Плановые затраты])","v":{"v":0,"d":"0 ₽"}},{"$f":"SUBTOTAL(109,Таблица10[Фактические затраты])","v":{"v":0,"d":"0 ₽"}},{"$f":"SUBTOTAL(109,Таблица10[Разница])","v":{"v":0,"d":"0 ₽"}}]
[null,"Другое",null,null,{"$f":"Таблица5[[#This Row],[Плановые затраты]]-Таблица5[[#This Row],[Фактические затраты]]","v":{"v":0,"d":"0 ₽"}}]
[null,"Итог",{"$f":"SUBTOTAL(109,Таблица5[Плановые затраты])","v":{"v":0,"d":"0 ₽"}},{"$f":"SUBTOTAL(109,Таблица5[Фактические затраты])","v":{"v":0,"d":"0 ₽"}},{"$f":"SUBTOTAL(109,Таблица5[Разница])","v":{"v":0,"d":"0 ₽"}},null,"ПОДАРКИ И ПОЖЕРТВОВАНИЯ","Плановые затраты","Фактические затраты","Разница"]
[{"$nulls":6},"Благотворительный взнос 1",null,null,{"$f":"Таблица11[[#This Row],[Плановые затраты]]-Таблица11[[#This Row],[Фактические затраты]]","v":{"v":0,"d":"0 ₽"}}]
[null,"ДОМАШНИЕ ЖИВОТНЫЕ","Плановые затраты","Фактические затраты","Разница",null,"Благотворительный взнос 2",null,null,{"$f":"Таблица11[[#This Row],[Плановые затраты]]-Таблица11[[#This Row],[Фактические затраты]]","v":{"v":0,"d":"0 ₽"}}]
[null,"Еда",null,null,{"$f":"Таблица6[[#This Row],[Плановые затраты]]-Таблица6[[#This Row],[Фактические затраты]]","v":{"v":0,"d":"0 ₽"}},null,"Благотворительный взнос 3",null,null,{"$f":"Таблица11[[#This Row],[Плановые затраты]]-Таблица11[[#This Row],[Фактические затраты]]","v":{"v":0,"d":"0 ₽"}}]
[null,"Врачи и анализы",null,null,{"$f":"Таблица6[[#This Row],[Плановые затраты]]-Таблица6[[#This Row],[Фактические затраты]]","v":{"v":0,"d":"0 ₽"}},null,"Итог",{"$f":"SUBTOTAL(109,Таблица11[Плановые затраты])","v":{"v":0,"d":"0 ₽"}},{"$f":"SUBTOTAL(109,Таблица11[Фактические затраты])","v":{"v":0,"d":"0 ₽"}},{"$f":"SUBTOTAL(109,Таблица11[Разница])","v":{"v":0,"d":"0 ₽"}}]
[null,"Уход",null,null,{"$f":"Таблица6[[#This Row],[Плановые затраты]]-Таблица6[[#This Row],[Фактические затраты]]","v":{"v":0,"d":"0 ₽"}}]
[null,"Игрушки",null,null,{"$f":"Таблица6[[#This Row],[Плановые затраты]]-Таблица6[[#This Row],[Фактические затраты]]","v":{"v":0,"d":"0 ₽"}},null,"ЮРИДИЧЕСКИЕ РАСХОДЫ","Плановые затраты","Фактические затраты","Разница"]
[null,"Другое",null,null,{"$f":"Таблица6[[#This Row],[Плановые затраты]]-Таблица6[[#This Row],[Фактические затраты]]","v":{"v":0,"d":"0 ₽"}},null,"Адвокат",null,null,{"$f":"Таблица12[[#This Row],[Плановые затраты]]-Таблица12[[#This Row],[Фактические затраты]]","v":{"v":0,"d":"0 ₽"}}]
[null,"Итог",{"$f":"SUBTOTAL(109,Таблица6[Плановые затраты])","v":{"v":0,"d":"0 ₽"}},{"$f":"SUBTOTAL(109,Таблица6[Фактические затраты])","v":{"v":0,"d":"0 ₽"}},{"$f":"SUBTOTAL(109,Таблица6[Разница])","v":{"v":0,"d":"0 ₽"}},null,"Алименты",null,null,{"$f":"Таблица12[[#This Row],[Плановые затраты]]-Таблица12[[#This Row],[Фактические затраты]]","v":{"v":0,"d":"0 ₽"}}]
[{"$nulls":6},"Оплата залога или платежи по решению суда",null,null,{"$f":"Таблица12[[#This Row],[Плановые затраты]]-Таблица12[[#This Row],[Фактические затраты]]","v":{"v":0,"d":"0 ₽"}}]
[null,"УХОД ЗА СОБОЙ","Плановые затраты","Фактические затраты","Разница",null,"Другое",null,null,{"$f":"Таблица12[[#This Row],[Плановые затраты]]-Таблица12[[#This Row],[Фактические затраты]]","v":{"v":0,"d":"0 ₽"}}]
[null,"Медицина",null,null,{"$f":"Таблица7[[#This Row],[Плановые затраты]]-Таблица7[[#This Row],[Фактические затраты]]","v":{"v":0,"d":"0 ₽"}},null,"Итог",{"$f":"SUBTOTAL(109,Таблица12[Плановые затраты])","v":{"v":0,"d":"0 ₽"}},{"$f":"SUBTOTAL(109,Таблица12[Фактические затраты])","v":{"v":0,"d":"0 ₽"}},{"$f":"SUBTOTAL(109,Таблица12[Разница])","v":{"v":0,"d":"0 ₽"}}]
[null,"Уход за волосами/ногтями",null,null,{"$f":"Таблица7[[#This Row],[Плановые затраты]]-Таблица7[[#This Row],[Фактические затраты]]","v":{"v":0,"d":"0 ₽"}}]
[null,"Одежда",null,null,{"$f":"Таблица7[[#This Row],[Плановые затраты]]-Таблица7[[#This Row],[Фактические затраты]]","v":{"v":0,"d":"0 ₽"}},null,"ИТОГОВЫЕ ПЛАНОВЫЕ ЗАТРАТЫ",null,null,{"$f":"SUM(C23,C33,C40,C46,C54,C64,H22,H31,H38,H44,H50,H57)","v":{"v":2060,"d":"2,060 ₽"}}]
[null,"Химчистка",null,null,{"$f":"Таблица7[[#This Row],[Плановые затраты]]-Таблица7[[#This Row],[Фактические затраты]]","v":{"v":0,"d":"0 ₽"}}]
[null,"Фитнес-клуб",null,null,{"$f":"Таблица7[[#This Row],[Плановые затраты]]-Таблица7[[#This Row],[Фактические затраты]]","v":{"v":0,"d":"0 ₽"}},null,"ИТОГОВЫЕ ФАКТИЧЕСКИЕ ЗАТРАТЫ",null,null,{"$f":"SUM(D23,D33,D40,D46,D54,D64,I22,I31,I38,I44,I50,I57)","v":{"v":2040,"d":"2,040 ₽"}}]
[null,"Сборы организации",null,null,{"$f":"Таблица7[[#This Row],[Плановые затраты]]-Таблица7[[#This Row],[Фактические затраты]]","v":{"v":0,"d":"0 ₽"}}]
[null,"Другое",null,null,{"$f":"Таблица7[[#This Row],[Плановые затраты]]-Таблица7[[#This Row],[Фактические затраты]]","v":{"v":0,"d":"0 ₽"}},null,"ИТОГОВАЯ РАЗНИЦА",null,null,{"$f":"SUM(E23,E33,E40,E46,E54,E64,J22,J31,J38,J44,J50,J57)","v":{"v":20,"d":"20 ₽"}}]
[null,"Итог",{"$f":"SUBTOTAL(109,Таблица7[Плановые затраты])","v":{"v":0,"d":"0 ₽"}},{"$f":"SUBTOTAL(109,Таблица7[Фактические затраты])","v":{"v":0,"d":"0 ₽"}},{"$f":"SUBTOTAL(109,Таблица7[Разница])","v":{"v":0,"d":"0 ₽"}}]